fUST/lending_fUST_20260129
["ID","MTS","AMOUNT","RATE_DAILY","PERIOD"]
[403889378,1769633439549,-1000.0,0.00025575,10]
[403889379,1769633439559,-579.0,0.00025575,10]
[403889380,1769633439569,-3717.62013273,0.00025603,2]
[403889381,1769633439578,-158.0,0.00026575,21]
[403889382,1769633439586,-184.95386914,0.00026602,5]
[403889383,1769633439595,-157.26127169,0.00026602,5]
[403889384,1769633439604,-5520.1,0.000269,2]
[403889385,1769633439613,-160.5,0.000269,7]
[403889386,1769633439622,-167.0,0.00027,7]
[403889387,1769633439633,-833.50864877,0.00027266,2]
[403889388,1769633439642,-184.95386914,0.00027359,5]
[403889389,1769633439651,-157.1173049,0.00027397,2]
[403889390,1769633439660,-276.01,0.000274,2]
[403889392,1769633439673,-4815.98044774,0.00027417,2]
[403889394,1769633439682,-796.57618986,0.00027417,2]
[403889396,1769633439691,-3186.30475945,0.00027417,2]
[403889398,1769633439700,-7162.01652306,0.00027417,2]
[403889400,1769633439710,-3717.62013273,0.00027923,2]
[403889401,1769633439719,-2978.098323,0.00027945,60]
[403889402,1769633439729,-2084.668826,0.00027945,30]
[403889404,1769633439740,-250.0,0.00027945,5]
[403889406,1769633439748,-250.0,0.00027945,5]
[403889408,1769633439757,-1000.0,0.00028132,30]
[403889409,1769633439766,-1000.0,0.00028132,30]
[403889410,1769633439775,-1000.0,0.00028132,30]
[403889411,1769633439784,-184.95386914,0.00028205,5]
[403889412,1769633439794,-325.74,0.000284,7]
[403889413,1769633439803,-1071.528267,0.000284,6]
[403889414,1769633439812,-276.13,0.00028429,2]
[403889415,1769633439821,-350.0,0.00028493,5]
[403889416,1769633439830,-350.0,0.00028493,5]
[403889417,1769633439839,-1000.0,0.000289,6]
[403889418,1769633439849,-450.0,0.00029041,5]
[403889419,1769633439858,-450.0,0.00029041,5]
[403889420,1769633439867,-184.95386914,0.00029078,5]
[403889421,1769633439877,-1621.54,0.000291,14]
[403889423,1769633439886,-161.0,0.00029123,3]
[403889424,1769633439895,-5000.0,0.00029206,23]
[403889425,1769633439903,-4246.65524428,0.00029255,2]
[403889426,1769633439914,-1957.856,0.00029255,2]
[403889427,1769633439923,-894.99699172,0.00029266,2]
[403889428,1769633439932,-2030.296672,0.0002931,2]
[403889429,1769633439942,-2105.41764886,0.00029365,2]
[403889430,1769633439951,-1000.0,0.000294,6]
[403889431,1769633439960,-2183.31810187,0.0002942,2]
[403889432,1769633439969,-2264.10087164,0.00029475,2]
[403889433,1769633439978,-2347.87260389,0.0002953,2]
[403889434,1769633439987,-500.0,0.00029578,7]
[403889436,1769633439996,-2434.74389024,0.00029585,2]
[403889438,1769633440005,-550.0,0.00029589,5]
[403889439,1769633440014,-236.57189686,0.00029589,5]
[403889440,1769633440023,-2524.82941417,0.0002964,2]
[403889441,1769633440032,-800.0,0.00029694,2]
[403889442,1769633440042,-2618.2481025,0.00029695,2]
[403889443,1769633440051,-730.0,0.00029789,3]
[403889444,1769633440060,-400.0,0.00029792,3]
[403889445,1769633440070,-800.0,0.00029792,2]
[403889446,1769633440079,-3028.7605958,0.0002982,2]
[403889447,1769633440089,-160.0,0.00029863,36]
[403889448,1769633440099,-1000.0,0.000299,6]
[403889449,1769633440108,-305.6755923,0.00029973,30]
[403889450,1769633440118,-305.6755923,0.00029973,30]
[403889451,1769633440128,-305.6755923,0.00029973,30]
[403889452,1769633440139,-305.6755923,0.00029973,30]
[403889453,1769633440148,-305.6755923,0.00029973,30]
[403889454,1769633440157,-1000.0,0.0003,7]
[403889455,1769633440166,-1000.0,0.0003,7]
[403889456,1769633440176,-178.5494496,0.0003,7]
[403889457,1769633440185,-151.0,0.0003,7]
[403889458,1769633440194,-1000.0,0.00030047,7]
[403889459,1769633440203,-151.0,0.00030061,7]
[403889460,1769633440212,-1000.0,0.00030093,7]
[403889461,1769633440222,-160.5,0.000301,7]
[403889462,1769633440231,-400.0,0.00030112,3]
[403889463,1769633440240,-151.0,0.00030122,7]
[403889465,1769633440249,-175.20269643,0.00030137,2]
[403889466,1769633440259,-650.0,0.00030137,5]
[403889467,1769633440267,-1000.0,0.0003014,7]
[403889468,1769633440277,-595.619664,0.00030181,30]
[403889469,1769633440286,-151.0,0.00030183,7]
[403889470,1769633440295,-1000.0,0.00030186,7]
[403889471,1769633440304,-5520.1,0.000302,2]
[403889472,1769633440314,-1000.0,0.00030233,7]
[403889473,1769633440323,-3717.62013273,0.00030242,2]
[403889474,1769633440332,-151.0,0.00030244,7]
[403889475,1769633440342,-442.0195791,0.00030247,30]
[403889476,1769633440352,-1000.0,0.00030264,7]
[403889477,1769633440361,-1000.0,0.0003028,7]
[403889478,1769633440371,-151.0,0.00030305,7]
[403889479,1769633440382,-1000.0,0.00030326,7]
[403889480,1769633440394,-151.0,0.00030366,7]
[403889481,1769633440407,-1000.0,0.00030373,7]
[403889482,1769633440419,-168.0,0.00030375,2]
[403889483,1769633440431,-161.0,0.00030378,3]
[403889484,1769633440443,-1525.83183535,0.00030379,7]
[403889485,1769633440456,-6097.22401404,0.00030379,7]
[403889486,1769633440468,-3295.14188998,0.00030379,7]
[403889487,1769633440478,-2095.73103039,0.00030379,7]
[403889488,1769633440489,-621554.77,0.00030399,6]
[403889489,1769633440499,-73017.81,0.00030399,6]
[403889490,1769633440511,-1000.0,0.000304,6]
[403889491,1769633440522,-1000.0,0.00030419,7]
[403889492,1769633440532,-151.0,0.00030426,7]
[403889493,1769633440544,-1000.0,0.00030466,7]
[403889494,1769633440556,-1043.65606314,0.00030479,2]
[403889495,1769633440567,-151.0,0.00030487,7]
[403889496,1769633440578,-800.0,0.00030497,2]
[403889497,1769633440590,-41199.39838499,0.000305,30]
[403889498,1769633440601,-1000.0,0.00030512,7]
[403889499,1769633440612,-1000.0,0.00030528,7]
[403889500,1769633440623,-151.0,0.00030548,7]
[403889501,1769633440635,-1000.0,0.00030559,7]
[403889502,1769633440646,-1000.0,0.00030606,7]
[403889503,1769633440657,-151.0,0.00030609,7]
[403889504,1769633440671,-369.8454805,0.0003063,30]
[403889505,1769633440682,-1263.1855115,0.0003063,30]
[403889506,1769633440693,-1000.0,0.00030652,7]
[403889507,1769633440703,-151.0,0.0003067,7]
[403889508,1769633440714,-750.0,0.00030685,5]
[403889509,1769633440725,-1000.0,0.00030699,7]
[403889510,1769633440738,-352.82269021,0.000307,2]
[403889511,1769633440748,-1411.29076083,0.000307,2]
[403889512,1769633440759,-3175.40421186,0.000307,2]
[403889513,1769633440770,-5645.16304332,0.000307,2]
[403889514,1769633440781,-269.09314971,0.000307,2]
[403889515,1769633440792,-1076.37259883,0.000307,2]
[403889516,1769633440803,-2421.83834737,0.000307,2]
[403889517,1769633440815,-4305.49039533,0.000307,2]
[403889518,1769633440825,-6727.3287427,0.000307,2]
[403889519,1769633440836,-9687.35338949,0.000307,2]
[403889520,1769633440846,-250.0,0.000307,10]
[403889521,1769633440856,-159191.85609635,0.000307,6]
[403889522,1769633440865,-400.0,0.00030718,3]
[403889523,1769633440875,-151.0,0.00030731,7]
[403889524,1769633440885,-1000.0,0.00030745,7]
[403889525,1769633440896,-1391.8249567,0.00030767,2]
[403889526,1769633440906,-10876.9233193,0.00030767,2]
[403889527,1769633440916,-151.0,0.00030774,3]
[403889528,1769633440926,-478.75725327,0.00030774,3]
[403889529,1769633440936,-578.20924308,0.00030774,3]
[403889530,1769633440945,-250.0,0.00030774,3]
[403889531,1769633440955,-250.0,0.00030774,3]
[403889532,1769633440966,-151.0,0.00030774,3]
[403889533,1769633440976,-496.47127164,0.00030774,3]
[403889534,1769633440986,-599.60298507,0.00030774,3]
[403889535,1769633440996,-261.79283996,0.00030774,3]
[403889536,1769633441007,-514.84070869,0.00030774,3]
[403889537,1769633441019,-621.78829552,0.00030774,3]
[403889538,1769633441029,-533.88981491,0.00030774,3]
[403889539,1769633441040,-393.96445136,0.00030774,3]
[403889540,1769633441050,-151.0,0.00030774,3]
[403889541,1769633441062,-553.64373807,0.00030774,3]
[403889542,1769633441072,-151.0,0.00030774,3]
[403889543,1769633441082,-174.61919141,0.00030774,3]
[403889544,1769633441091,-574.12855637,0.00030774,3]
[403889545,1769633441100,-169.33681227,0.00030774,3]
[403889546,1769633441109,-151.0,0.00030774,3]
[403889547,1769633441120,-181.08010149,0.00030774,3]
[403889548,1769633441131,-348.5216759,0.00030774,3]
[403889549,1769633441141,-151.0,0.00030774,3]
[403889550,1769633441151,-151.0,0.00030774,3]
[403889551,1769633441162,-151.0,0.00030774,3]
[403889552,1769633441173,-151.0,0.00030774,3]
[403889553,1769633441183,-151.0,0.00030774,3]
[403889554,1769633441194,-286.23816441,0.00030774,3]
[403889555,1769633441204,-151.0,0.00030774,3]
[403889556,1769633441214,-151.0,0.00030774,3]
[403889557,1769633441228,-289.41339882,0.00030774,3]
[403889558,1769633441238,-174.61919141,0.00030774,3]
[403889559,1769633441248,-500.0,0.00030774,3]
[403889560,1769633441258,-500.0,0.00030774,3]
[403889561,1769633441268,-151.0,0.00030774,3]
[403889562,1769633441279,-181.08010149,0.00030774,3]
[403889563,1769633441289,-2312.83697232,0.00030774,3]
[403889564,1769633441298,-187.78006525,0.00030774,3]
[403889565,1769633441308,-2398.4119403,0.00030774,3]
[403889566,1769633441317,-194.72792766,0.00030774,3]
[403889567,1769633441326,-377.7,0.00030774,3]
[403889568,1769633441335,-2487.15318209,0.00030774,3]
[403889569,1769633441345,-201.93286099,0.00030774,3]
[403889570,1769633441354,-2579.17784983,0.00030774,3]
[403889571,1769633441364,-209.40437684,0.00030774,3]
[403889572,1769633441374,-2674.60743027,0.00030774,3]
[403889573,1769633441383,-217.15233878,0.00030774,3]
[403889574,1769633441393,-2773.56790519,0.00030774,3]
[403889575,1769633441403,-225.18697532,0.00030774,3]
[403889576,1769633441412,-233.51889341,0.00030774,3]
[403889577,1769633441422,-242.15909246,0.00030774,3]
[403889578,1769633441431,-251.11897888,0.00030774,3]
[403889579,1769633441441,-260.4103811,0.00030774,3]
[403889580,1769633441451,-270.0455652,0.00030774,3]
[403889581,1769633441461,-280.03725112,0.00030774,3]
[403889582,1769633441471,-290.39862941,0.00030774,3]
[403889583,1769633441481,-301.1433787,0.00030774,3]
[403889584,1769633441490,-630.0,0.00030776,2]
[403889585,1769633441501,-2150.0,0.00030776,2]
[403889586,1769633441510,-1369.0,0.00030776,2]
[403889587,1769633441520,-716.0,0.00030776,2]
[403889588,1769633441531,-206.36876951,0.0003078,10]
[403889589,1769633441541,-160.09522763,0.0003078,10]
[403889590,1769633441551,-151.0,0.00030781,31]
[403889591,1769633441561,-151.0,0.00030781,31]
[403889592,1769633441571,-288.165348,0.00030781,31]
[403889593,1769633441581,-201.250084,0.00030781,31]
[403889594,1769633441592,-201.250084,0.00030781,31]
[403889595,1769633441602,-201.250084,0.00030781,31]
[403889596,1769633441612,-201.250084,0.00030781,31]
[403889597,1769633441622,-151.0,0.00030781,31]
[403889598,1769633441633,-250.000238,0.00030781,31]
[403889599,1769633441643,-151.0,0.00030781,31]
[403889600,1769633441653,-151.0,0.00030781,31]
[403889601,1769633441671,-250.000238,0.00030781,31]
[403889602,1769633441680,-253.42086,0.00030781,31]
[403889603,1769633441691,-250.000238,0.00030781,31]
[403889604,1769633441700,-250.000238,0.00030781,31]
[403889605,1769633441710,-3988360.82301203,0.00030781,30]
[403889606,1769633441729,-2960.585,0.00030781,30]
[403889607,1769633442269,-3e-08,0.00024184,30]
[403889619,1769633442940,-1135.04524533,0.00024184,30]
[403889620,1769633442951,-582.12475464,0.00024184,30]
[403889621,1769633442960,-3434.34,0.00026775,30]
[403889622,1769633442969,-1082.04547712,0.00029366,30]
[403889623,1769633442980,-4069.46452288,0.00029366,30]
[403889624,1769633442989,-2715.12328229,0.0002975,2]
[403889625,1769633442998,-2460.09987822,0.00029805,2]
[403889626,1769633443007,-58839.07931685,0.00030781,30]
[403889627,1769633443182,-7004.44239455,0.00030781,30]
[403889628,1769633443193,-5900.64193889,0.00030781,30]
[403889629,1769633443204,-1287.69171935,0.00030781,30]
[403889638,1769633446002,-253.7425319,0.00030781,30]
[403889639,1769633446013,-6194.22010145,0.00030781,30]
[403889640,1769633446057,-8950.0,0.00030781,30]
[403889687,1769634631859,-445.26614753,0.0001212,2]
[403889689,1769634631872,-219.78546095,0.0001212,2]
[403889691,1769634631882,-419.96511608,0.00012242,2]
[403889693,1769634631891,-25.30103145,0.00012304,2]
[403889712,1769634637892,-308.01260992,0.00012304,2]
[403889713,1769634637902,-499.73739008,0.00013273,2]
[403889718,1769634637949,-0.26260992,0.00013273,2]
[403889719,1769634637959,-301.29413338,0.00013273,2]
[403889721,1769634637970,-198.70586662,0.00013273,2]
[403889723,1769634637979,-500.0,0.00013273,2]
[403889725,1769634637993,-300.0,0.00013698,2]
[403889726,1769634638002,-742.0,0.00013698,2]
[403889727,1769634638011,-500.0,0.00013699,2]
[403889728,1769634638021,-500.0,0.00013699,2]
[403889729,1769634638031,-500.0,0.00013699,2]
[403889730,1769634638040,-500.0,0.00013699,2]
[403889731,1769634638049,-1000.0,0.00013821,2]
[403889733,1769634638061,-1000.0,0.00013821,2]
[403889734,1769634638070,-1000.0,0.00013821,2]
[403889736,1769634638078,-407.42318625,0.00013868,2]
[403889737,1769634638088,-160.49773888,0.00014149,2]
[403889738,1769634638097,-1000.0,0.00014247,2]
[403889739,1769634638106,-634.23032778,0.00014247,2]
[403889740,1769634638115,-1000.0,0.00014247,2]
[403889741,1769634638124,-222.3651231,0.00014247,2]
[403889742,1769634638133,-393.31009681,0.00014304,2]
[403889743,1769634638143,-1500.0,0.00014368,2]
[403889744,1769634638152,-1500.0,0.00014368,2]
[403889745,1769634638163,-1500.0,0.00014368,2]
[403889746,1769634638172,-1500.0,0.00014795,2]
[403889747,1769634638181,-176.845,0.00014795,2]
[403889748,1769634638191,-2000.0,0.00014916,2]
[403889749,1769634638200,-2000.0,0.00014916,2]
[403889750,1769634638215,-1074.12268118,0.00014916,2]
[403889751,1769634638225,-268.06529243,0.00014989,2]
[403889752,1769634638235,-31191.62913015,0.0001499,2]
[403889753,1769634638244,-420.0,0.00015011,2]
[403889754,1769634638254,-300.824391,0.00015058,2]
[403889755,1769634638263,-191.81,0.00015242,2]
[403889756,1769634638273,-300.0,0.00015289,2]
[403889757,1769634638283,-300.0,0.00015289,2]
[403889758,1769634638292,-300.0,0.00015289,2]
[403889759,1769634638302,-300.0,0.00015289,2]
[403889760,1769634638311,-300.0,0.00015289,2]
[403889761,1769634638320,-300.0,0.00015289,2]
[403889762,1769634638330,-300.0,0.00015289,2]
[403889763,1769634638339,-300.0,0.00015289,2]
[403889764,1769634638349,-300.0,0.00015289,2]
[403889765,1769634638358,-300.0,0.00015289,2]
[403889766,1769634638367,-300.0,0.00015289,2]
[403889767,1769634638377,-300.0,0.00015289,2]
[403889768,1769634638386,-300.0,0.00015289,2]
[403889769,1769634638395,-300.0,0.00015289,2]
[403889770,1769634638405,-300.0,0.00015289,2]
[403889771,1769634638417,-2000.0,0.00015342,2]
[403889772,1769634638426,-2500.0,0.00015464,2]
[403889773,1769634638436,-2500.0,0.00015464,2]
[403889774,1769634638446,-641.99095553,0.00015505,2]
[403889775,1769634638455,-600.0,0.00015594,2]
[403889776,1769634638464,-300.824391,0.00015692,2]
[403889777,1769634638474,-3345.85811952,0.0001585,2]
[403889778,1769634638483,-2500.0,0.0001589,2]
[403889779,1769634638492,-5038.08922706,0.00015949,2]
[403889780,1769634638501,-1720000.0,0.0001595,2]
[403889781,1769634638510,-1208.74,0.0001595,2]
[403889782,1769634638520,-1208.74,0.0001595,2]
[403889783,1769634638529,-1208.74,0.0001595,2]
[403889784,1769634638538,-1208.74,0.0001595,2]
[403889785,1769634638547,-1208.74,0.0001595,2]
[403889786,1769634638556,-1208.74,0.0001595,2]
[403889787,1769634638565,-1208.74,0.0001595,2]
[403889788,1769634638574,-1208.74,0.0001595,2]
[403889789,1769634638583,-1208.74,0.0001595,2]
[403889790,1769634638592,-1208.74,0.0001595,2]
[403889791,1769634638602,-1208.74,0.0001595,2]
[403889792,1769634638612,-1208.74,0.0001595,2]
[403889793,1769634638622,-1208.74,0.0001595,2]
[403889794,1769634638631,-1208.74,0.0001595,2]
[403889795,1769634638640,-1208.74,0.0001595,2]
[403889796,1769634638649,-1208.74,0.0001595,2]
[403889797,1769634638659,-1208.74,0.0001595,2]
[403889798,1769634638670,-1208.74,0.0001595,2]
[403889799,1769634638680,-1208.74,0.0001595,2]
[403889800,1769634638689,-1208.74,0.0001595,2]
[403889801,1769634638699,-1208.74,0.0001595,2]
[403889802,1769634638708,-1208.74,0.0001595,2]
[403889803,1769634638718,-1208.74,0.0001595,2]
[403889804,1769634638728,-1208.74,0.0001595,2]
[403889805,1769634638738,-1208.74,0.0001595,2]
[403889806,1769634638747,-1208.74,0.0001595,2]
[403889807,1769634638757,-1208.74,0.0001595,2]
[403889808,1769634638767,-1208.74,0.0001595,2]
[403889809,1769634638776,-1208.74,0.0001595,2]
[403889810,1769634638786,-1208.74,0.0001595,2]
[403889811,1769634638795,-1208.74,0.0001595,2]
[403889812,1769634638804,-1208.74,0.0001595,2]
[403889813,1769634638814,-1208.74,0.0001595,2]
[403889814,1769634638824,-1208.74,0.0001595,2]
[403889815,1769634638833,-1208.74,0.0001595,2]
[403889816,1769634638842,-1906.66,0.0001595,2]
[403889817,1769634638852,-3000.0,0.00016,2]
[403889818,1769634638862,-3000.0,0.0001601,2]
[403889819,1769634638871,-1004.19700684,0.00016012,2]
[403889820,1769634638880,-3000.0,0.00016012,2]
[403889821,1769634638889,-3000.0,0.0001602,2]
[403889822,1769634638900,-3000.0,0.0001603,2]
[403889823,1769634638909,-3000.0,0.0001604,2]
[403889824,1769634638919,-4440.65683,0.0001605,2]
[403889825,1769634638929,-453.30655226,0.00016304,2]
[403889826,1769634638939,-300.824391,0.00016326,2]
[403889827,1769634638948,-250.0,0.0001634,2]
[403889828,1769634638957,-200.0,0.00016438,2]
[403889829,1769634638967,-500.0,0.00016438,2]
[403889830,1769634638976,-423.36819008,0.00016438,2]
[403889831,1769634638991,-150.42150351,0.00016438,2]
[403889832,1769634639000,-164.57351573,0.00016438,2]
[403889833,1769634639010,-3000.0,0.00016438,2]
[403889834,1769634639019,-587.0,0.00016451,2]
[403889835,1769634639030,-500.0,0.0001656,2]
[403889836,1769634639039,-1444.47964995,0.0001686,2]
[403889837,1769634639050,-300.824391,0.0001696,2]
[403889838,1769634639059,-3500.0,0.00016986,2]
[403889839,1769634639069,-1629.69274501,0.00017031,2]
[403889840,1769634639079,-720.0,0.00017153,2]
[403889841,1769634639088,-4000.0,0.00017534,2]
[403889842,1769634639097,-300.824391,0.00017593,2]
[403889843,1769634639107,-3345.85811945,0.0001795,2]
[403889844,1769634639117,-823.0,0.00018028,2]
[403889845,1769634639126,-4500.0,0.00018082,2]
[403889846,1769634639136,-2567.96382213,0.00018216,2]
[403889847,1769634639145,-300.824391,0.00018227,2]
[403889848,1769634639155,-513.30300771,0.00018304,2]
[403889849,1769634639165,-5000.0,0.0001863,2]
[403889850,1769634639174,-864.0,0.00018868,2]
[403889851,1769634639184,-328.05722388,0.00018932,3]
[403889852,1769634639193,-2540.3071,0.00019178,2]
[403889853,1769634639202,-200.0,0.00019178,2]
[403889854,1769634639211,-1135.43,0.00019178,2]
[403889855,1769634639220,-1000.0,0.00019178,2]
[403889856,1769634639229,-1000.0,0.00019178,2]
[403889857,1769634639239,-1694.85911576,0.00019178,2]
[403889858,1769634639248,-6133.44,0.000192,2]
[403889859,1769634639257,-160.5,0.000192,2]
[403889860,1769634639266,-172.01,0.000192,2]
[403889861,1769634639276,-1459.38,0.000192,2]
[403889862,1769634639285,-4012.44347208,0.00019572,2]
[403889863,1769634639294,-1152.0,0.00019757,2]
[403889864,1769634639303,-3345.85811945,0.00020049,2]
[403889865,1769634639312,-3666.80867627,0.00020195,2]
[403889866,1769634639321,-573.29946315,0.00020304,2]
[403889867,1769634639330,-277.0,0.00020406,2]
[403889868,1769634639339,-331.0,0.00020606,2]
[403889869,1769634639349,-1000.0,0.00020755,2]
[403889870,1769634639358,-388.0,0.00020773,2]
[403889871,1769634639367,-5777.91859979,0.00020928,2]
[403889872,1769634639376,-3000.0,0.00021,2]
[403889873,1769634639385,-3000.0,0.0002101,2]
[403889874,1769634639394,-3000.0,0.0002102,2]
[403889875,1769634639403,-3000.0,0.0002103,2]
[403889876,1769634639414,-3000.0,0.0002104,2]
[403889877,1769634639424,-3000.0,0.0002105,2]
[403889878,1769634639433,-3000.0,0.0002106,2]
[403889879,1769634639443,-3000.0,0.0002107,2]
[403889880,1769634639452,-3000.0,0.0002108,2]
[403889881,1769634639462,-3000.0,0.0002109,2]
[403889882,1769634639471,-3000.0,0.000211,2]
[403889883,1769634639480,-3000.0,0.0002111,2]
[403889884,1769634639492,-3000.0,0.0002112,2]
[403889885,1769634639501,-3000.0,0.0002113,2]
[403889886,1769634639510,-3000.0,0.0002114,2]
[403889887,1769634639519,-3000.0,0.0002115,2]
[403889888,1769634639529,-3000.0,0.0002116,2]
[403889889,1769634639539,-3000.0,0.0002117,2]
[403889890,1769634639548,-3000.0,0.0002118,2]
[403889891,1769634639557,-3000.0,0.0002119,2]
[403889892,1769634639566,-3000.0,0.000212,2]
[403889893,1769634639575,-3000.0,0.0002121,2]
[403889894,1769634639584,-3000.0,0.0002122,2]
[403889895,1769634639593,-3000.0,0.0002123,2]
[403889896,1769634639603,-3000.0,0.0002124,2]
[403889897,1769634639612,-3000.0,0.0002125,2]
[403889898,1769634639621,-718.47498,0.0002125,7]
[403889899,1769634639630,-3000.0,0.0002126,2]
[403889900,1769634639639,-3000.0,0.0002127,2]
[403889901,1769634639649,-3000.0,0.0002128,2]
[403889902,1769634639658,-3000.0,0.0002129,2]
[403889903,1769634639668,-3000.0,0.000213,2]
[403889905,1769634639677,-3000.0,0.0002131,2]
[403889906,1769634639686,-3000.0,0.0002132,2]
[403889907,1769634639696,-3000.0,0.0002133,2]
[403889908,1769634639705,-3000.0,0.0002134,2]
[403889910,1769634639714,-3000.0,0.0002135,2]
[403889912,1769634639723,-3000.0,0.0002136,2]
[403889915,1769634639733,-3000.0,0.0002137,2]
[403889917,1769634639742,-208.466884,0.0002137,7]
[403889919,1769634639751,-3000.0,0.0002138,2]
[403889921,1769634639760,-3000.0,0.0002139,2]
[403889922,1769634639769,-3000.0,0.000214,2]
[403889923,1769634639779,-3000.0,0.0002141,2]
[403889924,1769634639787,-3000.0,0.0002142,2]
[403889925,1769634639797,-4559.34317,0.0002143,2]
[403889926,1769634639806,-1305.0,0.00021651,2]
[403889927,1769634639815,-3345.85811945,0.00022149,2]
[403889928,1769634639824,-4040.701323,0.00022182,30]
[403889929,1769634639833,-177.44,0.000222,2]
[403889930,1769634639842,-293.17,0.000222,7]
[403889931,1769634639851,-181.0,0.00022219,6]
[403889932,1769634639860,-7864.38920527,0.00022283,2]
[403889935,1769634639869,-633.2959186,0.00022304,2]
[403889936,1769634640011,-1586.04,0.00022687,30]
[403889937,1769634640020,-1459.38,0.000227,14]
[403889938,1769634640032,-1000.0,0.00022831,10]
[403889939,1769634640041,-244.0,0.00022831,10]
[403889940,1769634640051,-6133.44,0.000229,2]
[403889941,1769634640061,-160.5,0.000229,7]
[403889943,1769634640070,-205.278565,0.0002295,30]
[403889944,1769634640079,-6518.77098004,0.00023358,2]
[403889945,1769634640089,-10271.85528852,0.00023639,2]
[403889946,1769634640099,-1154.486092,0.00023957,30]
[403889947,1769634640108,-3345.85811945,0.00024249,2]
[403889948,1769634640118,-693.29237405,0.00024304,2]
[403889949,1769634640127,-380.0,0.00024658,2]
[403889950,1769634640138,-615285.003744,0.000249,2]
[403889951,1769634640147,-1000.0,0.00025114,10]
[403889952,1769634640156,-492.0,0.00025114,10]
[403889953,1769634640167,-3172.08,0.00025118,30]
[403889954,1769634640176,-1041.66666667,0.000252,30]
[403889955,1769634640185,-162.0,0.00025507,17]
[403889956,1769634640194,-293.17,0.000256,7]
[403889957,1769634640203,-753.28882949,0.00026304,2]
[403889958,1769634640212,-3345.85811945,0.00026348,2]
[403889959,1769634640222,-276.13,0.00026591,2]
[403889960,1769634640231,-276.12088692,0.00026603,2]
[403889961,1769634640239,-1459.38,0.000269,14]
[403889962,1769634640248,-6133.44,0.00027,2]
[403889963,1769634640257,-160.5,0.00027,7]
[403889964,1769634640266,-167.0,0.00027,7]
[403889965,1769634640275,-190.0,0.00027,7]
[403889966,1769634640284,-157.1173049,0.00027397,2]
[403889967,1769634640293,-4758.13,0.00027549,30]
[403889968,1769634640302,-1000.0,0.00027625,30]
[403889969,1769634640312,-791.0,0.00027625,30]
[403889970,1769634640320,-190.0,0.00027671,14]
[403889971,1769634640330,-577.243046,0.00027728,30]
[403889972,1769634640339,-250.0,0.00027945,5]
[403889973,1769634640348,-250.0,0.00027945,5]
[403889974,1769634640357,-180.0,0.00028247,28]
[403889975,1769634640366,-813.28528494,0.00028304,2]
[403889976,1769634640375,-1071.528267,0.000284,6]
[403889977,1769634640384,-3345.85811945,0.00028448,2]
[403889978,1769634640393,-350.0,0.00028493,5]
[403889979,1769634640402,-350.0,0.00028493,5]
[403889980,1769634640411,-190.0,0.00028767,14]
[403889981,1769634640422,-293.17,0.000288,7]
[403889982,1769634640431,-500.0,0.00028848,7]
[403889983,1769634640440,-1000.0,0.000289,6]
[403889984,1769634640450,-450.0,0.00029041,5]
[403889985,1769634640459,-450.0,0.00029041,5]
[403889986,1769634640467,-800.0,0.00029063,2]
[403889987,1769634640476,-4246.65524428,0.00029204,2]
[403889988,1769634640485,-1957.856,0.00029204,2]
[403889989,1769634640494,-5000.0,0.00029206,18]
[403889990,1769634640503,-2030.296672,0.00029259,2]
[403889991,1769634640512,-2105.41764886,0.00029314,2]
[403889992,1769634640521,-2183.31810187,0.00029369,2]
[403889993,1769634640530,-1000.0,0.000294,6]
[403889994,1769634640539,-800.0,0.000294,2]
[403889995,1769634640548,-2264.10087164,0.00029424,2]